fUST/lending_fUST_20240709
["ID","MTS","AMOUNT","RATE_DAILY","PERIOD"]
[331575866,1720531845176,-570.95,0.00038904,14]
[331575867,1720531845185,-500.0,0.00038904,14]
[331575868,1720531845195,-500.0,0.00038904,14]
[331575869,1720531845204,-500.0,0.00038904,14]
[331575870,1720531845213,-792.62,0.00038904,14]
[331575871,1720531845222,-500.0,0.00038904,14]
[331575872,1720531845232,-500.0,0.00038904,14]
[331575873,1720531845241,-500.0,0.00038904,2]
[331575874,1720531845250,-1062.33,0.00038904,14]
[331575875,1720531845259,-792.69,0.00038904,14]
[331575876,1720531845268,-6168.46,0.00038904,7]
[331575877,1720531845277,-500.0,0.00038904,14]
[331575878,1720531845286,-500.0,0.00038904,14]
[331575879,1720531845294,-924.99,0.00038904,14]
[331575880,1720531845303,-699.3,0.00038904,14]
[331575881,1720531845312,-4649.22,0.00038904,14]
[331575882,1720531845324,-500.0,0.00038904,14]
[331575883,1720531845333,-698.41,0.00038904,14]
[331575884,1720531845342,-595.81,0.00038904,14]
[331575885,1720531845351,-154.8980232,0.00038904,14]
[331575886,1720531845360,-1114.64,0.00038904,14]
[331575887,1720531845368,-1195.03,0.00038904,14]
[331575888,1720531845377,-500.0,0.00038904,14]
[331575889,1720531845387,-500.0,0.00038904,14]
[331575890,1720531845396,-589.23,0.00038904,14]
[331575891,1720531845405,-886.16,0.00038904,14]
[331575892,1720531845414,-636.94362936,0.00038904,14]
[331575893,1720531845424,-500.0,0.00038904,14]
[331575894,1720531845433,-1646.5,0.00038904,14]
[331575895,1720531845443,-500.0,0.00038904,14]
[331575896,1720531845453,-500.0,0.00038904,14]
[331575897,1720531845463,-11033.08,0.00038904,14]
[331575898,1720531845472,-500.0,0.00038904,14]
[331575899,1720531845481,-687.21,0.00038904,14]
[331575900,1720531845490,-500.0,0.00038904,14]
[331575901,1720531845499,-500.0,0.00038904,2]
[331575902,1720531845508,-963.45,0.00038904,14]
[331575903,1720531845517,-2542.44,0.00038904,14]
[331575904,1720531845526,-968.47,0.00038904,14]
[331575905,1720531845537,-500.0,0.00038904,14]
[331575906,1720531845546,-500.0,0.00038904,2]
[331575907,1720531845555,-500.0,0.00038904,14]
[331575908,1720531845565,-1416.6,0.00038904,14]
[331575909,1720531845577,-394.28228504,0.00038999,4]
[331575910,1720531845586,-500.0,0.00039,2]
[331575911,1720531845596,-500.0,0.00039,2]
[331575912,1720531845605,-500.0,0.00039,2]
[331575913,1720531845614,-500.0,0.00039,2]
[331575914,1720531845624,-500.0,0.00039,2]
[331575915,1720531845633,-500.0,0.00039,2]
[331575916,1720531845642,-220.0,0.00039,2]
[331575917,1720531845651,-260.008,0.0003911,2]
[331575918,1720531845660,-1405.0,0.0003911,2]
[331575919,1720531845669,-212.91402171,0.00039167,4]
[331575920,1720531845678,-154.60575532,0.00039167,4]
[331575921,1720531845687,-500.0,0.00039177,2]
[331575922,1720531845696,-14932.55223605,0.00039177,4]
[331575923,1720531845706,-166.02433274,0.00039177,4]
[331575924,1720531845715,-235.62575763,0.00039177,4]
[331575925,1720531845725,-166.02433274,0.00039177,4]
[331575926,1720531845734,-235.62575763,0.00039177,4]
[331575927,1720531845743,-155.57748648,0.00039177,4]
[331575928,1720531845752,-371.68939578,0.00039177,4]
[331575929,1720531845761,-265.09411912,0.00039177,2]
[331575930,1720531845770,-500.0,0.00039178,14]
[331575931,1720531845779,-536.37128315,0.00039178,14]
[331575932,1720531845788,-500.0,0.00039178,14]
[331575933,1720531845797,-500.0,0.00039178,14]
[331575934,1720531845806,-572.27,0.00039178,14]
[331575935,1720531845815,-500.0,0.00039178,14]
[331575936,1720531845827,-541.56,0.00039178,14]
[331575937,1720531845836,-593.04,0.00039178,14]
[331575938,1720531845845,-500.0,0.00039178,14]
[331575939,1720531845855,-500.0,0.00039178,14]
[331575940,1720531845864,-1099.89,0.00039178,14]
[331575941,1720531845873,-807.2,0.00039178,14]
[331575942,1720531845882,-500.0,0.00039178,14]
[331575943,1720531845891,-500.0,0.00039178,14]
[331575944,1720531845901,-520.84,0.00039178,14]
[331575945,1720531845910,-6013.32,0.00039178,14]
[331575946,1720531845919,-818.3,0.00039178,14]
[331575947,1720531845929,-645.26066582,0.00039178,14]
[331575948,1720531845938,-500.0,0.00039178,2]
[331575949,1720531845948,-500.0,0.00039178,14]
[331575950,1720531845958,-832.29,0.00039178,14]
[331575951,1720531845967,-500.0,0.00039178,14]
[331575952,1720531845976,-562.37,0.00039178,14]
[331575953,1720531845985,-475.44537521,0.00039178,14]
[331575954,1720531845995,-500.0,0.00039178,14]
[331575955,1720531846004,-810.44,0.00039178,14]
[331575956,1720531846013,-316.16585282,0.00039178,14]
[331575957,1720531846022,-500.0,0.00039178,14]
[331575958,1720531846031,-500.0,0.00039178,14]
[331575959,1720531846044,-500.0,0.00039178,14]
[331575960,1720531846053,-500.0,0.00039178,14]
[331575961,1720531846062,-274.59115437,0.00039178,14]
[331575962,1720531846074,-500.0,0.00039178,14]
[331575963,1720531846085,-500.0,0.00039178,14]
[331575964,1720531846094,-500.0,0.00039178,14]
[331575965,1720531846106,-2040.66,0.00039178,14]
[331575966,1720531846117,-500.0,0.00039178,14]
[331575967,1720531846127,-500.0,0.00039178,14]
[331575968,1720531846136,-500.0,0.00039178,14]
[331575969,1720531846145,-500.0,0.00039178,14]
[331575970,1720531846154,-155.56364662,0.00039178,10]
[331575971,1720531846164,-500.0,0.00039178,14]
[331575972,1720531846173,-1736.19,0.00039178,14]
[331575973,1720531846182,-846.62,0.00039178,14]
[331575974,1720531846194,-500.0,0.00039178,14]
[331575975,1720531846204,-3501.6,0.00039178,14]
[331575976,1720531846214,-682.7,0.00039178,14]
[331575977,1720531846223,-500.0,0.00039178,14]
[331575978,1720531846232,-758.88,0.00039178,14]
[331575979,1720531846242,-570.95,0.00039178,14]
[331575980,1720531846251,-500.0,0.00039178,14]
[331575981,1720531846316,-500.0,0.00039178,14]
[331575982,1720531846327,-500.0,0.00039178,14]
[331575983,1720531846337,-792.62,0.00039178,14]
[331575984,1720531846347,-500.0,0.00039178,14]
[331575985,1720531846356,-500.0,0.00039178,14]
[331575986,1720531846366,-507.22665725,0.00039178,2]
[331575987,1720531846376,-1062.33,0.00039178,14]
[331575988,1720531846386,-792.69,0.00039178,14]
[331575989,1720531846396,-6168.46,0.00039178,7]
[331575990,1720531846406,-500.0,0.00039178,14]
[331575991,1720531846415,-500.0,0.00039178,14]
[331575992,1720531846424,-924.99,0.00039178,14]
[331575993,1720531846433,-699.3,0.00039178,14]
[331575994,1720531846442,-4649.22,0.00039178,14]
[331575995,1720531846452,-500.0,0.00039178,14]
[331575996,1720531846461,-698.41,0.00039178,14]
[331575998,1720531846470,-595.81,0.00039178,14]
[331575999,1720531846480,-1114.64,0.00039178,14]
[331576000,1720531846490,-1195.03,0.00039178,14]
[331576001,1720531846501,-500.0,0.00039178,14]
[331576002,1720531846511,-500.0,0.00039178,14]
[331576003,1720531846520,-589.23,0.00039178,14]
[331576004,1720531846530,-886.16,0.00039178,14]
[331576005,1720531846539,-500.0,0.00039178,14]
[331576006,1720531846548,-1646.5,0.00039178,14]
[331576007,1720531846558,-500.0,0.00039178,14]
[331576008,1720531846567,-152.860135,0.00039178,14]
[331576009,1720531846587,-151.0,0.00039178,14]
[331576010,1720531846597,-500.0,0.00039178,14]
[331576011,1720531846606,-11033.08,0.00039178,14]
[331576012,1720531846615,-151.0,0.00039178,14]
[331576013,1720531846626,-500.0,0.00039178,14]
[331576014,1720531846635,-687.21,0.00039178,14]
[331576015,1720531846644,-151.0,0.00039178,14]
[331576016,1720531846654,-500.0,0.00039178,14]
[331576017,1720531846663,-500.0,0.00039178,2]
[331576018,1720531846672,-963.45,0.00039178,14]
[331576019,1720531846681,-2542.44,0.00039178,14]
[331576020,1720531846690,-151.0,0.00039178,14]
[331576021,1720531846699,-968.47,0.00039178,14]
[331576022,1720531846708,-500.0,0.00039178,14]
[331576023,1720531846717,-500.0,0.00039178,2]
[331576024,1720531846726,-500.0,0.00039178,14]
[331576025,1720531846736,-1416.6,0.00039178,14]
[331576026,1720531846745,-153.0,0.00039178,2]
[331576027,1720531846755,-306.0,0.00039178,2]
[331576028,1720531846764,-154.59033561,0.00039393,10]
[331576029,1720531846774,-154.60575532,0.00039393,4]
[331576030,1720531846784,-154.60575532,0.00039393,4]
[331576031,1720531846794,-154.60575532,0.00039393,4]
[331576032,1720531846803,-256.79365305,0.00039393,2]
[331576034,1720531846813,-360.8874203,0.00039393,4]
[331576036,1720531846827,-537.697249,0.00039394,2]
[331576037,1720531846838,-500.0,0.00039452,14]
[331576038,1720531846848,-500.0,0.00039452,14]
[331576039,1720531846858,-500.0,0.00039452,14]
[331576040,1720531846868,-572.27,0.00039452,14]
[331576041,1720531846878,-500.0,0.00039452,14]
[331576042,1720531846889,-541.56,0.00039452,14]
[331576043,1720531846899,-593.04,0.00039452,14]
[331576044,1720531846909,-500.0,0.00039452,14]
[331576045,1720531846918,-624.28414674,0.00039452,14]
[331576046,1720531846928,-1099.89,0.00039452,14]
[331576047,1720531846938,-807.2,0.00039452,14]
[331576048,1720531846947,-500.0,0.00039452,14]
[331576049,1720531846956,-500.0,0.00039452,14]
[331576050,1720531846966,-520.84,0.00039452,14]
[331576051,1720531846976,-6013.32,0.00039452,14]
[331576052,1720531846986,-818.3,0.00039452,14]
[331576053,1720531846995,-500.0,0.00039452,2]
[331576054,1720531847005,-500.0,0.00039452,14]
[331576055,1720531847015,-832.29,0.00039452,14]
[331576056,1720531847024,-500.0,0.00039452,14]
[331576057,1720531847035,-562.37,0.00039452,14]
[331576058,1720531847047,-500.0,0.00039452,14]
[331576059,1720531847057,-810.44,0.00039452,14]
[331576060,1720531847066,-151.0,0.00039452,14]
[331576061,1720531847080,-500.0,0.00039452,14]
[331576062,1720531847088,-500.0,0.00039452,14]
[331576063,1720531847098,-500.0,0.00039452,14]
[331576064,1720531847107,-500.0,0.00039452,14]
[331576065,1720531847120,-500.0,0.00039452,14]
[331576066,1720531847130,-520.0739724,0.00039452,14]
[331576067,1720531847139,-500.0,0.00039452,14]
[331576068,1720531847149,-2040.66,0.00039452,14]
[331576069,1720531847158,-500.0,0.00039452,14]
[331576070,1720531847168,-500.0,0.00039452,14]
[331576071,1720531847178,-500.0,0.00039452,14]
[331576072,1720531847189,-500.0,0.00039452,14]
[331576073,1720531847199,-500.0,0.00039452,14]
[331576074,1720531847209,-1736.19,0.00039452,14]
[331576075,1720531847218,-846.62,0.00039452,14]
[331576076,1720531847228,-500.0,0.00039452,14]
[331576077,1720531847237,-3501.6,0.00039452,14]
[331576078,1720531847246,-682.7,0.00039452,14]
[331576079,1720531847256,-500.0,0.00039452,14]
[331576080,1720531847265,-758.88,0.00039452,14]
[331576081,1720531847274,-151.0,0.00039452,14]
[331576082,1720531847284,-570.95,0.00039452,14]
[331576083,1720531847294,-500.0,0.00039452,14]
[331576084,1720531847306,-500.0,0.00039452,14]
[331576085,1720531847316,-500.0,0.00039452,14]
[331576086,1720531847328,-792.62,0.00039452,14]
[331576087,1720531847337,-500.0,0.00039452,14]
[331576088,1720531847345,-500.0,0.00039452,14]
[331576089,1720531847354,-1062.33,0.00039452,14]
[331576090,1720531847363,-792.69,0.00039452,14]
[331576091,1720531847371,-3570.63703348,0.00039452,7]
[331576092,1720531847531,-2597.82296652,0.00039452,7]
[331576093,1720531847545,-970.944185,0.00039452,14]
[331576094,1720531847555,-970.944185,0.00039452,14]
[331576095,1720531847565,-500.0,0.00039452,14]
[331576096,1720531847583,-500.0,0.00039452,14]
[331576097,1720531847593,-924.99,0.00039452,14]
[331576098,1720531847602,-699.3,0.00039452,14]
[331576099,1720531847612,-4649.22,0.00039452,14]
[331576100,1720531847622,-500.0,0.00039452,14]
[331576101,1720531847631,-698.41,0.00039452,14]
[331576102,1720531847640,-595.81,0.00039452,14]
[331576103,1720531847649,-1114.64,0.00039452,14]
[331576104,1720531847659,-1195.03,0.00039452,14]
[331576105,1720531847669,-260.31785769,0.00039452,14]
[331576106,1720531847678,-500.0,0.00039452,14]
[331576107,1720531847687,-589.23,0.00039452,14]
[331576108,1720531847697,-886.16,0.00039452,14]
[331576109,1720531847707,-500.0,0.00039452,14]
[331576110,1720531847717,-1646.5,0.00039452,14]
[331576111,1720531847726,-500.0,0.00039452,14]
[331576112,1720531847736,-500.0,0.00039452,14]
[331576113,1720531847745,-1870.66395462,0.00039452,14]
[331576114,1720531847923,-643.5565645,0.00037807,4]
[331576115,1720531847932,-500.0,0.0003863,14]
[331576116,1720531847941,-500.0,0.00038904,14]
[331576117,1720531847951,-500.0,0.00039178,14]
[331576118,1720531847960,-160.04606779,0.00039393,2]
[331576119,1720531847970,-9162.41604538,0.00039452,14]
[331576120,1720531847979,-500.0,0.00039452,14]
[331576121,1720531847989,-687.21,0.00039452,14]
[331576122,1720531847998,-500.0,0.00039452,14]
[331576123,1720531848007,-500.0,0.00039452,2]
[331576124,1720531848016,-963.45,0.00039452,14]
[331576125,1720531848025,-2542.44,0.00039452,14]
[331576126,1720531848035,-968.47,0.00039452,14]
[331576127,1720531848049,-500.0,0.00039452,14]
[331576128,1720531848058,-500.0,0.00039452,2]
[331576129,1720531848068,-500.0,0.00039452,14]
[331576130,1720531848081,-1416.6,0.00039452,14]
[331576131,1720531848091,-150.0,0.0003955,2]
[331576132,1720531848100,-150.0,0.000397,2]
[331576133,1720531848110,-275.99640882,0.00039726,14]
[331576134,1720531848120,-500.0,0.00039726,14]
[331576135,1720531848130,-500.0,0.00039726,14]
[331576136,1720531848139,-572.27,0.00039726,14]
[331576137,1720531848149,-500.0,0.00039726,14]
[331576138,1720531848159,-541.56,0.00039726,14]
[331576139,1720531848168,-593.04,0.00039726,14]
[331576140,1720531848177,-500.0,0.00039726,14]
[331576141,1720531848187,-1099.89,0.00039726,14]
[331576142,1720531848197,-807.2,0.00039726,14]
[331576143,1720531848206,-500.0,0.00039726,14]
[331576144,1720531848216,-500.0,0.00039726,14]
[331576145,1720531848226,-520.84,0.00039726,14]
[331576146,1720531848235,-6013.32,0.00039726,14]
[331576147,1720531848244,-818.3,0.00039726,14]
[331576148,1720531848253,-500.0,0.00039726,2]
[331576149,1720531848262,-500.0,0.00039726,14]
[331576150,1720531848271,-832.29,0.00039726,14]
[331576151,1720531848280,-500.0,0.00039726,14]
[331576152,1720531848289,-562.37,0.00039726,14]
[331576153,1720531848298,-500.0,0.00039726,14]
[331576154,1720531848307,-810.44,0.00039726,14]
[331576155,1720531848316,-500.0,0.00039726,14]
[331576156,1720531848327,-500.0,0.00039726,14]
[331576157,1720531848336,-500.0,0.00039726,14]
[331576158,1720531848345,-500.0,0.00039726,14]
[331576159,1720531848354,-500.0,0.00039726,14]
[331576160,1720531848362,-179.78937814,0.00039726,14]
[331576161,1720531848371,-2040.66,0.00039726,14]
[331576162,1720531848380,-500.0,0.00039726,14]
[331576163,1720531848390,-500.0,0.00039726,14]
[331576164,1720531848399,-500.0,0.00039726,14]
[331576165,1720531848408,-500.0,0.00039726,14]
[331576166,1720531848417,-500.0,0.00039726,14]
[331576167,1720531848426,-1736.19,0.00039726,14]
[331576168,1720531848435,-846.62,0.00039726,14]
[331576169,1720531848444,-500.0,0.00039726,14]
[331576170,1720531848453,-3501.6,0.00039726,14]
[331576171,1720531848462,-682.7,0.00039726,14]
[331576172,1720531848471,-500.0,0.00039726,14]
[331576173,1720531848480,-758.88,0.00039726,14]
[331576174,1720531848489,-570.95,0.00039726,14]
[331576175,1720531848498,-500.0,0.00039726,14]
[331576176,1720531848507,-500.0,0.00039726,14]
[331576177,1720531848516,-500.0,0.00039726,14]
[331576178,1720531848525,-792.62,0.00039726,14]
[331576179,1720531848534,-500.0,0.00039726,14]
[331576180,1720531848543,-500.0,0.00039726,14]
[331576181,1720531848552,-1062.33,0.00039726,14]
[331576182,1720531848561,-792.69,0.00039726,14]
[331576183,1720531848570,-6168.46,0.00039726,7]
[331576184,1720531848581,-500.0,0.00039726,14]
[331576185,1720531848590,-500.0,0.00039726,14]
[331576186,1720531848652,-924.99,0.00039726,14]
[331576187,1720531848662,-699.3,0.00039726,14]
[331576188,1720531848671,-4649.22,0.00039726,14]
[331576189,1720531848680,-500.0,0.00039726,14]
[331576190,1720531848689,-698.41,0.00039726,14]
[331576191,1720531848698,-595.81,0.00039726,14]
[331576192,1720531848707,-1114.64,0.00039726,14]
[331576193,1720531848716,-1195.03,0.00039726,14]
[331576194,1720531848726,-500.0,0.00039726,14]
[331576195,1720531848735,-589.23,0.00039726,14]
[331576196,1720531848744,-886.16,0.00039726,14]
[331576197,1720531848753,-418.02994184,0.00039726,14]
[331576198,1720531848763,-1646.5,0.00039726,14]
[331576199,1720531848772,-500.0,0.00039726,14]
[331576200,1720531848782,-500.0,0.00039726,14]
[331576201,1720531848792,-11033.08,0.00039726,14]
[331576202,1720531848801,-687.21,0.00039726,14]
[331576203,1720531848810,-500.0,0.00039726,14]
[331576204,1720531848820,-500.0,0.00039726,14]
[331576205,1720531848830,-500.0,0.00039726,2]
[331576206,1720531848839,-963.45,0.00039726,14]
[331576207,1720531848848,-2542.44,0.00039726,14]
[331576208,1720531848859,-968.47,0.00039726,14]
[331576209,1720531848868,-500.0,0.00039726,14]
[331576210,1720531848878,-541.33758,0.00039726,2]
[331576211,1720531848888,-500.0,0.00039726,14]
[331576212,1720531848897,-1416.6,0.00039726,14]
[331576213,1720531848906,-435.0,0.00039994,2]
[331576214,1720531848916,-1000.0,0.00039999,3]
[331576215,1720531848925,-3995.05042258,0.00039999,4]
[331576216,1720531848934,-155.1936798,0.00039999,2]
[331576217,1720531848944,-155.1936798,0.00039999,2]
[331576218,1720531848954,-154.60575532,0.00039999,4]
[331576219,1720531848963,-312.91526637,0.00039999,4]
[331576220,1720531848974,-8908.29734997,0.0004,5]
[331576221,1720531849376,-214.46279251,0.00035259,2]
[331576222,1720531934925,156.26378609,0.00014999,2]
[331576223,1720532008578,1424.58215724,0.00014999,2]
[331576225,1720532018665,496.24989653,0.00014999,2]
[331576226,1720532028023,9993.32577486,0.00014999,2]
[331576241,1720532231573,195.44097058,0.000139,2]
[331576249,1720532343295,42248.84590217,0.00014998,2]
[331576251,1720532373293,35657.13504104,0.00014998,2]
[331576252,1720532373320,6591.71086113,0.00014998,2]
[331576253,1720532448580,208.20094769,0.00014999,2]
[331576254,1720532494916,818.08694568,0.00014999,2]
[331576262,1720532588722,1633.13096022,0.00014999,2]
[331576280,1720532606828,6981.98564229,0.00014998,2]
[331576309,1720532661628,5644.09207254,0.00014998,2]
[331576310,1720532664283,4711.13030053,0.00014999,2]
[331576312,1720532671537,9615.23092531,0.00014998,2]
[331576313,1720532676971,11039.06819247,0.00014998,2]
[331576336,1720532722884,-286.926286,0.00015339,2]
[331576337,1720532722909,-600.1115365,0.00015385,2]
[331576338,1720532722933,-2641.67131361,0.00016155,2]
[331576339,1720532722953,-1000.0,0.00016244,10]
[331576340,1720532722974,-1000.0,0.00016253,10]
[331576341,1720532722994,-1011.4506018,0.00016253,10]
[331576342,1720532723015,-300.0,0.00016254,2]
[331576343,1720532723036,-2823.84026209,0.00016255,2]
[331576359,1720532756943,3078.85157566,0.00014999,2]
[331576360,1720532758333,-23751.0,0.00016255,2]
[331576380,1720532794833,155.57748648,0.00014999,2]
[331576386,1720532808427,2126.25063044,0.00014999,2]
[331576399,1720532831932,154.60575532,0.00014999,2]
[331576400,1720532838978,8282.61798029,0.00014998,2]
[331576402,1720532869099,4999.89117578,0.00014998,2]
[331576403,1720532870312,1303.53376299,0.00014998,2]
[331576405,1720532875702,496.24989653,0.00014998,2]
[331576406,1720532884639,1188.73525142,0.00014998,2]
[331576407,1720532889086,812.60035042,0.00014998,2]
[331576413,1720532953167,-300.0,0.00016254,2]
[331576414,1720532953189,-15674.00564008,0.00016255,2]
[331576415,1720532953210,-32866.51973642,0.00016255,2]
[331576416,1720532957160,-2311.4623994,0.00016155,2]
[331576417,1720532957181,-2080.74219001,0.00016255,2]
[331576418,1720532957200,-9615.23092531,0.00016255,2]
[331576419,1720532957219,-6981.98564229,0.00016255,2]
[331576420,1720532957239,-154.60575532,0.00016255,2]
[331576421,1720532957258,-1635.9635479,0.00016255,2]
[331576422,1720532957278,-1500.0,0.00016255,2]
[331576423,1720532957297,-5210.0005731,0.00016255,2]
[331576424,1720532957320,-3537.15790732,0.00016255,2]
[331576426,1720532978486,5504.37614326,0.00014998,2]
[331576432,1720533003123,3139.96498768,0.00014999,2]
[331576433,1720533004665,6520.9270276,0.00014998,2]
[331576434,1720533006179,566.91969589,0.00014999,2]
[331576436,1720533008433,5210.0005731,0.00014998,2]
[331576437,1720533008478,158.61040466,0.00014999,2]
[331576438,1720533009351,663.40242465,0.00014999,2]
[331576440,1720533016882,155.33817854,0.00014999,2]
[331576441,1720533017416,189.16519588,0.00014999,2]
[331576442,1720533017502,11039.06819247,0.00014998,2]
[331576443,1720533020065,304.45610945,0.00014999,2]
[331576444,1720533020961,2256.78960762,0.00014999,2]
[331576445,1720533021495,992.63271205,0.00014999,2]
[331576446,1720533022500,1435.23931138,0.00014999,2]
[331576448,1720533024122,2249.64240333,0.00014999,2]
[331576449,1720533024358,1229.95449669,0.00015,2]
[331576450,1720533025148,154.60575532,0.00014999,2]
[331576451,1720533026153,934.93879927,0.00014999,2]
[331576518,1720533031903,-2570.76347303,0.00016246,2]
[331576559,1720533032289,-632.68231449,0.00016246,2]
[331576656,1720533035635,208.37564863,0.00014999,2]
[331576677,1720533037630,216.9277335,0.00014999,2]
[331576687,1720533037965,-21696.55421248,0.00016246,2]
[331576688,1720533037976,-300.0,0.00016254,2]
[331576689,1720533037985,-300.0,0.00016254,2]
[331576690,1720533037995,-57244.60275606,0.00016254,2]
[331576691,1720533038005,-1500.0,0.00016255,2]
[331576692,1720533038014,-1400.71994862,0.00016255,2]
[331576694,1720533038023,-287.47457424,0.00016255,2]
[331576696,1720533038032,-180.17298398,0.00016255,2]
[331576698,1720533038042,-496.24989653,0.00016255,2]
[331576700,1720533038051,-155.05668743,0.00016255,2]
[331576702,1720533038061,-404.65395806,0.00016255,2]
[331576703,1720533038070,-266.96885211,0.00016255,2]
[331576705,1720533038080,-790.41155196,0.00016255,2]
[331576706,1720533038090,-159.62974281,0.00016255,2]
[331576707,1720533038099,-777.12632108,0.00016255,2]
[331576708,1720533038109,-1542.74304063,0.00016255,2]
[331576709,1720533038119,-1645.85201533,0.00016255,2]
[331576710,1720533038129,-268.59948788,0.00016255,7]
[331576711,1720533038138,-319.2143109,0.00016255,2]
[331576712,1720533038148,-183.32686016,0.00016255,2]
[331576713,1720533038158,-496.24989653,0.00016255,2]
[331576714,1720533038167,-386.51161687,0.00016255,2]
[331576715,1720533038178,-155.38304106,0.00016255,2]
[331576716,1720533038187,-2847.93034478,0.00016255,2]
[331576717,1720533038196,-790.41155196,0.00016255,2]
[331576718,1720533038205,-283.26851156,0.00016255,2]
[331576719,1720533038215,-3000.0,0.00016269,2]
[331576720,1720533038224,-166.666666,0.00016438,2]
[331576721,1720533038234,-461.7864594,0.00016573,2]
[331576722,1720533038244,-166.666666,0.00016823,2]
[331576723,1720533038254,-166.666666,0.00017208,2]
[331576724,1720533038263,-166.666666,0.00017592,2]
[331576725,1720533038273,-301.0,0.00017766,2]
[331576726,1720533038283,-420.0,0.00017879,2]
[331576727,1720533038292,-166.666666,0.00017977,2]
[331576728,1720533038302,-1040.95683172,0.00018,2]
[331576729,1720533038311,-204.96923908,0.00018,2]
[331576730,1720533038321,-206.63267818,0.00018,2]
[331576731,1720533038331,-38073.36429101,0.00018169,2]
[331576732,1720533038440,-385.08293136,0.00018169,2]
[331576733,1720533038451,-19370.36927343,0.00018169,2]
[331576734,1720533038461,-5504.37614326,0.0001818,2]
[331576735,1720533038472,-3773.14321747,0.0001818,2]
[331576736,1720533038482,-723.61521419,0.0001818,2]
[331576737,1720533038492,-194.50164443,0.0001818,2]
[331576738,1720533038502,-166.666666,0.00018362,2]
[331576739,1720533038511,-17258.59312702,0.00018899,2]
[331576740,1720533038521,-4433.35212726,0.000189,2]
[331576741,1720533038530,-250.0,0.00019041,2]
[331576742,1720533038539,-1777.86582851,0.00019078,2]
[331576743,1720533038549,-1022.52113446,0.00019164,2]
[331576744,1720533038558,-562.06809035,0.00019165,2]
[331576745,1720533038568,-155.05333031,0.00019165,2]
[331576746,1720533038577,-162.759691,0.00019178,2]
[331576747,1720533038587,-162.802643,0.00019178,2]
[331576748,1720533038596,-440.8903542,0.00019178,4]
[331576749,1720533038606,-587.0,0.00019667,2]
[331576750,1720533038617,-154.62117811,0.00019703,2]
[331576751,1720533038626,-32938.17729894,0.00019703,2]
[331576752,1720533038636,-42248.84590217,0.00019703,2]
[331576753,1720533038646,-159.65124257,0.00019703,2]
[331576754,1720533038655,-1598.67495677,0.00019703,2]
[331576755,1720533038664,-456.11118975,0.00019703,2]
[331576756,1720533038674,-476.24033483,0.00019978,2]
[331576757,1720533038684,-581.78366056,0.00019978,2]
[331576758,1720533038694,-500.0,0.00019978,2]
[331576759,1720533038703,-500.0,0.00019978,2]
[331576760,1720533038713,-263.41836941,0.00019978,2]
[331576761,1720533038722,-216.34955881,0.00019978,2]
[331576762,1720533038731,-500.0,0.00019978,2]
[331576763,1720533038740,-545.96841249,0.00019978,2]
[331576764,1720533038750,-500.0,0.00019978,2]
[331576765,1720533038759,-500.0,0.00019978,2]
[331576766,1720533038768,-340.92545006,0.00019978,2]
[331576767,1720533038778,-500.0,0.00019978,2]
[331576768,1720533038787,-500.0,0.00019978,2]
[331576769,1720533038796,-258.91881873,0.00019978,2]
[331576770,1720533038805,-500.0,0.00019978,2]